[Event "*** Titled Tuesday Blitz"]
[Site "Chess.com"]
[Date "2020.11.03"]
[Round "1"]
[White "AlexeiShirov"]
[Black "Maxim_e2e4"]
[Result "1-0"]
[WhiteElo "2786"]
[BlackElo "2394"]
[TimeControl "180+1"]
[EndTime "10:06:02 PST"]
[Termination "AlexeiShirov won on time"]

1. e4 {[%clk 0:03:00.9]} 1... c6 {[%clk 0:03:00]} 2. d4 {[%clk 0:03:00.1]} 2...
d5 {[%clk 0:03:00.1]} 3. e5 {[%clk 0:03:00.1]} 3... c5 {[%clk 0:03:00.4]} 4.
dxc5 {[%clk 0:02:58.9]} 4... e6 {[%clk 0:03:00.4]} 5. a3 {[%clk 0:02:58]} 5...
Bxc5 {[%clk 0:02:54.6]} 6. Nf3 {[%clk 0:02:57.1]} 6... Nc6 {[%clk 0:02:39.7]} 7.
b4 {[%clk 0:02:55.5]} 7... Bb6 {[%clk 0:02:36.1]} 8. Bb2 {[%clk 0:02:43.8]} 8...
Nge7 {[%clk 0:02:35.4]} 9. Bd3 {[%clk 0:02:42]} 9... Ng6 {[%clk 0:02:35]} 10.
O-O {[%clk 0:02:38.3]} 10... O-O {[%clk 0:02:31.4]} 11. Re1 {[%clk 0:02:16.8]}
11... Nf4 {[%clk 0:02:15.4]} 12. c4 {[%clk 0:02:08.9]} 12... Nxd3 {[%clk
0:02:11.8]} 13. Qxd3 {[%clk 0:02:07.6]} 13... dxc4 {[%clk 0:02:08.6]} 14. Qxc4
{[%clk 0:02:06]} 14... Bd7 {[%clk 0:01:25.5]} 15. Nc3 {[%clk 0:02:02]} 15... Rc8
{[%clk 0:00:59.6]} 16. Qg4 {[%clk 0:01:59.4]} 16... Ne7 {[%clk 0:00:43.1]} 17.
Rad1 {[%clk 0:01:57.6]} 17... Nd5 {[%clk 0:00:40.1]} 18. Ne4 {[%clk 0:01:27.9]}
18... Rc2 {[%clk 0:00:31.6]} 19. Bd4 {[%clk 0:01:26.7]} 19... Bxd4 {[%clk
0:00:08.9]} 20. Nxd4 {[%clk 0:01:26.3]} 20... Rc4 {[%clk 0:00:08.6]} 21. Nd6
{[%clk 0:01:23.3]} 21... Rc7 {[%clk 0:00:07.8]} 22. Rd3 {[%clk 0:01:20.3]} 22...
f5 {[%clk 0:00:03.7]} 23. Qd1 {[%clk 0:01:16.8]} 23... b6 {[%clk 0:00:01.9]} 24.
N4xf5 {[%clk 0:01:11.9]} 24... exf5 {[%clk 0:00:01.1]} 25. Rxd5 {[%clk
0:01:09.6]} 25... Be6 {[%clk 0:00:01.3]} 26. Rd4 {[%clk 0:01:08.4]} 26... Rd7
{[%clk 0:00:01.1]} 27. Qd2 {[%clk 0:01:07.4]} 1-0

[Event "*** Titled Tuesday Blitz"]
[Site "Chess.com"]
[Date "2020.11.03"]
[Round "1"]
[White "Zarikovs1999"]
[Black "GjakanTati"]
[Result "1-0"]
[WhiteElo "2328"]
[BlackElo "2610"]
[TimeControl "180+1"]
[EndTime "10:06:02 PST"]
[Termination "Zarikovs1999 won by resignation"]

1. e4 {[%clk 0:02:50.9]} 1... c5 {[%clk 0:02:55]} 2. Nf3 {[%clk 0:02:50.4]} 2...
Nc6 {[%clk 0:02:54.6]} 3. d4 {[%clk 0:02:50.8]} 3... cxd4 {[%clk 0:02:54.6]} 4.
Nxd4 {[%clk 0:02:51.7]} 4... Nf6 {[%clk 0:02:54.5]} 5. Nc3 {[%clk 0:02:51.7]}
5... e5 {[%clk 0:02:54.4]} 6. Ndb5 {[%clk 0:02:52.1]} 6... d6 {[%clk 0:02:52.8]}
7. Bg5 {[%clk 0:02:52.1]} 7... a6 {[%clk 0:02:52.1]} 8. Na3 {[%clk 0:02:50.5]}
8... b5 {[%clk 0:02:50.2]} 9. Nd5 {[%clk 0:02:49.5]} 9... Be7 {[%clk 0:02:48.3]}
10. Bxf6 {[%clk 0:02:49.4]} 10... Bxf6 {[%clk 0:02:48.8]} 11. c3 {[%clk
0:02:50.3]} 11... O-O {[%clk 0:02:40.1]} 12. Nc2 {[%clk 0:02:39.2]} 12... Bg5
{[%clk 0:02:39.1]} 13. a4 {[%clk 0:02:35]} 13... bxa4 {[%clk 0:02:35.2]} 14.
Rxa4 {[%clk 0:02:30.8]} 14... Rb8 {[%clk 0:02:34.9]} 15. Bxa6 {[%clk 0:02:09.7]}
15... Rxb2 {[%clk 0:02:22.1]} 16. Bxc8 {[%clk 0:01:58.5]} 16... Qxc8 {[%clk
0:02:21.7]} 17. O-O {[%clk 0:01:58.8]} 17... Qb7 {[%clk 0:02:07]} 18. Nce3
{[%clk 0:01:55.7]} 18... Qb5 {[%clk 0:01:59.9]} 19. Rc4 {[%clk 0:01:24.9]} 19...
Na5 {[%clk 0:01:54.7]} 20. Rb4 {[%clk 0:01:23.4]} 20... Rxb4 {[%clk 0:01:52.2]}
21. cxb4 {[%clk 0:01:24.3]} 21... Nc6 {[%clk 0:01:50.3]} 22. Nf5 {[%clk
0:01:18.5]} 22... Rd8 {[%clk 0:01:45.8]} 23. Qg4 {[%clk 0:01:09.6]} 23... f6
{[%clk 0:00:46.9]} 24. h4 {[%clk 0:01:03.7]} 24... h5 {[%clk 0:00:44.2]} 25.
Qxh5 {[%clk 0:00:49]} 25... Bd2 {[%clk 0:00:43.7]} 26. Qg6 {[%clk 0:00:41.7]}
26... Qb7 {[%clk 0:00:39.5]} 27. Nde7+ {[%clk 0:00:39.6]} 1-0

[Event "*** Titled Tuesday Blitz"]
[Site "Chess.com"]
[Date "2020.11.03"]
[Round "1"]
[White "seorobert1971"]
[Black "davigator"]
[Result "1/2-1/2"]
[WhiteElo "2710"]
[BlackElo "2376"]
[TimeControl "180+1"]
[EndTime "10:06:03 PST"]
[Termination "Game drawn by repetition"]

1. d4 {[%clk 0:03:00.8]} 1... Nf6 {[%clk 0:02:56.2]} 2. c4 {[%clk 0:03:00.4]}
2... e6 {[%clk 0:02:55.3]} 3. Nf3 {[%clk 0:03:01.3]} 3... Bb4+ {[%clk
0:02:54.8]} 4. Nbd2 {[%clk 0:03:01.1]} 4... b6 {[%clk 0:02:54.5]} 5. a3 {[%clk
0:03:00.9]} 5... Be7 {[%clk 0:02:54.2]} 6. e4 {[%clk 0:03:00.5]} 6... d5 {[%clk
0:02:54.6]} 7. e5 {[%clk 0:03:00]} 7... Nfd7 {[%clk 0:02:54.5]} 8. cxd5 {[%clk
0:02:59.8]} 8... exd5 {[%clk 0:02:55.4]} 9. Bd3 {[%clk 0:02:58.6]} 9... c5
{[%clk 0:02:55.7]} 10. Qe2 {[%clk 0:02:58.5]} 10... Nf8 {[%clk 0:02:51.8]} 11.
O-O {[%clk 0:02:56.3]} 11... Nc6 {[%clk 0:02:51.7]} 12. Bb5 {[%clk 0:02:54.5]}
12... Bd7 {[%clk 0:02:50.7]} 13. Nb3 {[%clk 0:02:49.8]} 13... Ne6 {[%clk
0:02:49.8]} 14. Be3 {[%clk 0:02:42.3]} 14... c4 {[%clk 0:02:49.8]} 15. Bxc6
{[%clk 0:02:37]} 15... Bxc6 {[%clk 0:02:49.4]} 16. Nc1 {[%clk 0:02:36.8]} 16...
b5 {[%clk 0:02:49]} 17. Qd2 {[%clk 0:02:35.9]} 17... a5 {[%clk 0:02:47.9]} 18.
Ne2 {[%clk 0:02:35.6]} 18... O-O {[%clk 0:02:46.8]} 19. Nf4 {[%clk 0:02:35.4]}
19... b4 {[%clk 0:02:45.8]} 20. Nxe6 {[%clk 0:02:32.8]} 20... fxe6 {[%clk
0:02:45.4]} 21. Ng5 {[%clk 0:02:32.9]} 21... Bd7 {[%clk 0:02:40.8]} 22. f4
{[%clk 0:02:31.8]} 22... Bxg5 {[%clk 0:02:40.7]} 23. fxg5 {[%clk 0:02:31.4]}
23... Qe7 {[%clk 0:02:39.6]} 24. axb4 {[%clk 0:02:29.3]} 24... axb4 {[%clk
0:02:38.8]} 25. Rxf8+ {[%clk 0:02:29]} 25... Rxf8 {[%clk 0:02:34.1]} 26. Ra7
{[%clk 0:02:27.2]} 26... g6 {[%clk 0:02:13.5]} 27. Rb7 {[%clk 0:02:23.6]} 27...
b3 {[%clk 0:02:12.9]} 28. h3 {[%clk 0:02:22.9]} 28... Rf7 {[%clk 0:02:11.9]} 29.
Kh2 {[%clk 0:02:21.8]} 29... Kg7 {[%clk 0:02:08.8]} 30. Qa5 {[%clk 0:02:18.2]}
30... Qe8 {[%clk 0:01:58]} 31. Qb6 {[%clk 0:02:11.2]} 31... Bc8 {[%clk
0:01:54.8]} 32. Rb8 {[%clk 0:02:09.3]} 32... Rd7 {[%clk 0:01:53]} 33. Qc6 {[%clk
0:02:03.3]} 33... Rd8 {[%clk 0:01:51.2]} 34. Qc7+ {[%clk 0:02:03.2]} 34... Kg8
{[%clk 0:01:49]} 35. Bd2 {[%clk 0:02:02.7]} 35... Qf8 {[%clk 0:01:43.6]} 36. Kg3
{[%clk 0:01:49.3]} 36... Re8 {[%clk 0:01:33.5]} 37. Kh2 {[%clk 0:01:18.4]} 37...
Ba6 {[%clk 0:01:19.1]} 38. Rb6 {[%clk 0:01:17.8]} 38... Bc8 {[%clk 0:01:19]} 39.
Kg1 {[%clk 0:01:17.4]} 39... Qf7 {[%clk 0:01:18.2]} 40. Qc5 {[%clk 0:01:15.7]}
40... Rf8 {[%clk 0:01:14.3]} 41. Rb8 {[%clk 0:01:15.1]} 41... Qf2+ {[%clk
0:01:13]} 42. Kh1 {[%clk 0:01:11.3]} 42... Qxd2 {[%clk 0:01:13]} 43. Rxc8 {[%clk
0:01:11]} 43... Qf4 {[%clk 0:01:12]} 44. Qc6 {[%clk 0:00:59.8]} 44... Qc1+
{[%clk 0:01:08.9]} 45. Kh2 {[%clk 0:00:59.2]} 45... Qf4+ {[%clk 0:01:09.2]} 46.
Kh1 {[%clk 0:00:58.5]} 46... Qf1+ {[%clk 0:01:00.8]} 47. Kh2 {[%clk 0:00:58.3]}
47... Qf4+ {[%clk 0:01:00.6]} 48. Kh1 {[%clk 0:00:58.3]} 1/2-1/2

[Event "*** Titled Tuesday Blitz"]
[Site "Chess.com"]
[Date "2020.11.03"]
[Round "1"]
[White "WcmDominicToretto"]
[Black "NeverW84M8"]
[Result "0-1"]
[WhiteElo "1890"]
[BlackElo "2480"]
[TimeControl "180+1"]
[EndTime "10:06:03 PST"]
[Termination "NeverW84M8 won by checkmate"]

1. e4 {[%clk 0:02:58.1]} 1... c5 {[%clk 0:02:58.5]} 2. Nc3 {[%clk 0:02:56.8]}
2... e6 {[%clk 0:02:58.6]} 3. f4 {[%clk 0:02:55.8]} 3... Nc6 {[%clk 0:02:58.9]}
4. Nf3 {[%clk 0:02:54.9]} 4... a6 {[%clk 0:02:57.9]} 5. a4 {[%clk 0:02:50.4]}
5... d5 {[%clk 0:02:57.8]} 6. d3 {[%clk 0:02:48]} 6... Nf6 {[%clk 0:02:54.6]} 7.
Be2 {[%clk 0:02:38]} 7... Be7 {[%clk 0:02:54.7]} 8. O-O {[%clk 0:02:38.5]} 8...
Rb8 {[%clk 0:02:55]} 9. Nh4 {[%clk 0:02:34.5]} 9... d4 {[%clk 0:02:54.8]} 10.
Na2 {[%clk 0:02:33.4]} 10... b5 {[%clk 0:02:54.8]} 11. axb5 {[%clk 0:02:31.9]}
11... axb5 {[%clk 0:02:55.7]} 12. Rb1 {[%clk 0:02:31.4]} 12... Ra8 {[%clk
0:02:48.4]} 13. Ra1 {[%clk 0:02:31.1]} 13... Nb4 {[%clk 0:02:46.8]} 14. Nxb4
{[%clk 0:02:28.9]} 14... Rxa1 {[%clk 0:02:45.6]} 15. Nc6 {[%clk 0:02:28.5]}
15... Qc7 {[%clk 0:02:45]} 16. Ne5 {[%clk 0:02:28.6]} 16... Nd7 {[%clk
0:02:40.9]} 17. Nef3 {[%clk 0:02:23.5]} 17... O-O {[%clk 0:02:35.1]} 18. Qe1
{[%clk 0:02:21.5]} 18... f5 {[%clk 0:02:33.8]} 19. Qg3 {[%clk 0:02:19.6]} 19...
Bb7 {[%clk 0:02:26.8]} 20. Ng5 {[%clk 0:02:12.2]} 20... Bxg5 {[%clk 0:02:24.3]}
21. Qxg5 {[%clk 0:02:10.9]} 21... fxe4 {[%clk 0:02:21.9]} 22. f5 {[%clk
0:02:09.8]} 22... e5 {[%clk 0:02:13.7]} 23. Qg3 {[%clk 0:01:56]} 23... Nf6
{[%clk 0:02:10.9]} 24. b3 {[%clk 0:01:34.6]} 24... e3 {[%clk 0:02:08.5]} 25. Nf3
{[%clk 0:01:18.7]} 25... Bxf3 {[%clk 0:02:07.3]} 26. Bxf3 {[%clk 0:01:15.3]}
26... Qe7 {[%clk 0:02:05.5]} 27. Be2 {[%clk 0:01:13.2]} 27... b4 {[%clk
0:02:01.4]} 28. h3 {[%clk 0:01:09.3]} 28... Rb1 {[%clk 0:01:57.3]} 29. Kh2
{[%clk 0:01:08.3]} 29... Ra8 {[%clk 0:01:56.5]} 30. Qf3 {[%clk 0:01:00.8]} 30...
Raa1 {[%clk 0:01:55.3]} 31. Bb2 {[%clk 0:00:58.4]} 31... Rxf1 {[%clk 0:01:54]}
32. Bxf1 {[%clk 0:00:56.6]} 32... Rb1 {[%clk 0:01:52.4]} 33. Bxd4 {[%clk
0:00:40.1]} 33... exd4 {[%clk 0:01:51.7]} 34. Qa8+ {[%clk 0:00:38.4]} 34... Qf8
{[%clk 0:01:51.5]} 35. Qf3 {[%clk 0:00:36.9]} 35... Qe8 {[%clk 0:01:49.8]} 36.
Be2 {[%clk 0:00:36.3]} 36... Qb8+ {[%clk 0:01:45.9]} 37. g3 {[%clk 0:00:34.6]}
37... Re1 {[%clk 0:01:44.3]} 38. Kg2 {[%clk 0:00:32.9]} 38... h5 {[%clk
0:01:37.1]} 39. g4 {[%clk 0:00:32.5]} 39... h4 {[%clk 0:01:36.7]} 40. g5 {[%clk
0:00:32.2]} 40... Qg3+ {[%clk 0:01:36.2]} 41. Qxg3 {[%clk 0:00:25.9]} 41... hxg3
{[%clk 0:01:37.1]} 42. gxf6 {[%clk 0:00:26]} 42... Rxe2+ {[%clk 0:01:35.8]} 43.
Kxg3 {[%clk 0:00:26.9]} 43... Rf2 {[%clk 0:01:34.8]} 44. fxg7 {[%clk 0:00:26.1]}
44... Rxf5 {[%clk 0:01:34.8]} 45. Kg4 {[%clk 0:00:27]} 45... Rf7 {[%clk
0:01:35.6]} 46. h4 {[%clk 0:00:26]} 46... e2 {[%clk 0:01:36.5]} 47. h5 {[%clk
0:00:25.5]} 47... e1=Q {[%clk 0:01:37.4]} 48. h6 {[%clk 0:00:26.1]} 48... Qg1+
{[%clk 0:01:36.9]} 49. Kh5 {[%clk 0:00:27]} 49... Rf5+ {[%clk 0:01:36.6]} 50.
Kh4 {[%clk 0:00:27.4]} 50... Qg5+ {[%clk 0:01:36.7]} 51. Kh3 {[%clk 0:00:28.3]}
51... Rf3+ {[%clk 0:01:36.8]} 52. Kh2 {[%clk 0:00:29.2]} 52... Qg3+ {[%clk
0:01:36.8]} 53. Kh1 {[%clk 0:00:30.1]} 53... Rf1# {[%clk 0:01:37.2]} 0-1

[Event "*** Titled Tuesday Blitz"]
[Site "Chess.com"]
[Date "2020.11.03"]
[Round "1"]
[White "BabyFacedAssasin"]
[Black "hungrycaterpillar4"]
[Result "0-1"]
[WhiteElo "2236"]
[BlackElo "2567"]
[TimeControl "180+1"]
[EndTime "10:06:04 PST"]
[Termination "hungrycaterpillar4 won by checkmate"]

1. e4 {[%clk 0:03:00.9]} 1... c5 {[%clk 0:02:53.9]} 2. Nf3 {[%clk 0:03:00]} 2...
Nc6 {[%clk 0:02:54.2]} 3. Bb5 {[%clk 0:02:59.1]} 3... g6 {[%clk 0:02:54.1]} 4.
Bxc6 {[%clk 0:02:58.9]} 4... dxc6 {[%clk 0:02:55]} 5. d3 {[%clk 0:02:58.5]} 5...
Bg7 {[%clk 0:02:55.1]} 6. h3 {[%clk 0:02:58.9]} 6... Qc7 {[%clk 0:02:54.4]} 7.
O-O {[%clk 0:02:54.6]} 7... e5 {[%clk 0:02:54.4]} 8. a4 {[%clk 0:02:43.3]} 8...
a5 {[%clk 0:02:52.6]} 9. Be3 {[%clk 0:02:38.7]} 9... b6 {[%clk 0:02:51.6]} 10.
Na3 {[%clk 0:02:30.9]} 10... h6 {[%clk 0:02:46]} 11. Nc4 {[%clk 0:02:29.8]}
11... Be6 {[%clk 0:02:45.9]} 12. Nfd2 {[%clk 0:02:18.1]} 12... Ne7 {[%clk
0:02:06.9]} 13. b4 {[%clk 0:02:05.8]} 13... axb4 {[%clk 0:02:00.7]} 14. a5
{[%clk 0:02:05.7]} 14... bxa5 {[%clk 0:01:56.6]} 15. Bxc5 {[%clk 0:02:05.5]}
15... O-O {[%clk 0:01:51.1]} 16. Bb6 {[%clk 0:01:50.1]} 16... Qb7 {[%clk
0:01:49.6]} 17. Bxa5 {[%clk 0:01:31.9]} 17... c5 {[%clk 0:01:49.5]} 18. Bb6
{[%clk 0:01:18.8]} 18... Qc6 {[%clk 0:01:33.3]} 19. Qe1 {[%clk 0:00:53]} 19...
Rxa1 {[%clk 0:01:28.2]} 20. Qxa1 {[%clk 0:00:50.8]} 20... Ra8 {[%clk 0:01:28.7]}
21. Qb2 {[%clk 0:00:41.4]} 21... Nc8 {[%clk 0:01:27.1]} 22. Ba5 {[%clk
0:00:24.7]} 22... Nd6 {[%clk 0:01:24.7]} 23. Nxd6 {[%clk 0:00:16.5]} 23... Qxd6
{[%clk 0:01:25.6]} 24. Ra1 {[%clk 0:00:15.7]} 24... Qd4 {[%clk 0:01:16.5]} 25.
Qxd4 {[%clk 0:00:15.1]} 25... exd4 {[%clk 0:01:17.4]} 26. Nb3 {[%clk 0:00:15.2]}
26... Bxb3 {[%clk 0:01:16.2]} 27. cxb3 {[%clk 0:00:15.4]} 27... Be5 {[%clk
0:01:15.7]} 28. Ra4 {[%clk 0:00:09.6]} 28... g5 {[%clk 0:01:07.3]} 29. Bb6
{[%clk 0:00:09.7]} 29... Rxa4 {[%clk 0:01:07.1]} 30. bxa4 {[%clk 0:00:10.6]}
30... b3 {[%clk 0:01:06.5]} 31. a5 {[%clk 0:00:10.9]} 31... b2 {[%clk
0:01:06.8]} 32. a6 {[%clk 0:00:11.5]} 32... b1=Q# {[%clk 0:01:07]} 0-1

[Event "*** Titled Tuesday Blitz"]
[Site "Chess.com"]
[Date "2020.11.03"]
[Round "1"]
[White "gmmoranda"]
[Black "TheCavemanChesss"]
[Result "1-0"]
[WhiteElo "2895"]
[BlackElo "2450"]
[TimeControl "180+1"]
[EndTime "10:06:05 PST"]
[Termination "gmmoranda won by resignation"]

1. d4 {[%clk 0:03:00.9]} 1... Nf6 {[%clk 0:02:58.8]} 2. c4 {[%clk 0:03:01.2]}
2... e6 {[%clk 0:02:59.1]} 3. Nf3 {[%clk 0:03:01.2]} 3... d5 {[%clk 0:02:59.5]}
4. Nc3 {[%clk 0:03:01.1]} 4... Bb4 {[%clk 0:02:59.8]} 5. Qb3 {[%clk 0:03:00.9]}
5... Nc6 {[%clk 0:02:53]} 6. e3 {[%clk 0:02:53]} 6... O-O {[%clk 0:02:52.9]} 7.
Be2 {[%clk 0:02:51.9]} 7... dxc4 {[%clk 0:02:47]} 8. Qxc4 {[%clk 0:02:51.8]}
8... Bd6 {[%clk 0:02:45.1]} 9. e4 {[%clk 0:02:45.2]} 9... e5 {[%clk 0:02:45.4]}
10. d5 {[%clk 0:02:45.4]} 10... Ne7 {[%clk 0:02:37.1]} 11. O-O {[%clk
0:02:44.3]} 11... a6 {[%clk 0:02:35.5]} 12. Bg5 {[%clk 0:02:32.1]} 12... Ng6
{[%clk 0:02:35.7]} 13. Nd2 {[%clk 0:02:27.3]} 13... h6 {[%clk 0:02:27.6]} 14.
Be3 {[%clk 0:02:27]} 14... Ng4 {[%clk 0:02:24.6]} 15. Bxg4 {[%clk 0:02:26.6]}
15... Bxg4 {[%clk 0:02:25.5]} 16. f3 {[%clk 0:02:24.4]} 16... Bd7 {[%clk
0:02:25.7]} 17. Rfd1 {[%clk 0:02:22.7]} 17... f5 {[%clk 0:02:21.6]} 18. exf5
{[%clk 0:02:20.9]} 18... Rxf5 {[%clk 0:02:17.8]} 19. Nde4 {[%clk 0:02:11.5]}
19... Nf4 {[%clk 0:02:09.1]} 20. Nxd6 {[%clk 0:02:00.4]} 20... cxd6 {[%clk
0:02:08]} 21. Qb4 {[%clk 0:01:48.7]} 21... Qc7 {[%clk 0:01:07.4]} 22. Ne4 {[%clk
0:01:38.7]} 22... Rd8 {[%clk 0:00:33.4]} 23. Kh1 {[%clk 0:01:18.8]} 23... Bc8
{[%clk 0:00:32.2]} 24. Rac1 {[%clk 0:01:18.5]} 24... Qe7 {[%clk 0:00:30.7]} 25.
Nxd6 {[%clk 0:01:12.8]} 25... Rxd6 {[%clk 0:00:25.2]} 26. Rxc8+ {[%clk
0:01:11.9]} 26... Kh7 {[%clk 0:00:25.7]} 27. Qe4 {[%clk 0:01:07.6]} 27... Qg5
{[%clk 0:00:23.2]} 28. g4 {[%clk 0:01:04.2]} 28... Rf6 {[%clk 0:00:10.5]} 29.
Bxf4 {[%clk 0:01:00.2]} 29... Qxf4 {[%clk 0:00:09]} 30. gxf5 {[%clk 0:01:00.2]}
1-0

[Event "*** Titled Tuesday Blitz"]
[Site "Chess.com"]
[Date "2020.11.03"]
[Round "1"]
[White "Gerodot71"]
[Black "mamonika"]
[Result "1-0"]
[WhiteElo "2489"]
[BlackElo "1985"]
[TimeControl "180+1"]
[EndTime "10:06:06 PST"]
[Termination "Gerodot71 won by checkmate"]

1. d4 {[%clk 0:03:00.9]} 1... Nf6 {[%clk 0:02:58.8]} 2. c4 {[%clk 0:03:00.2]}
2... g6 {[%clk 0:02:59.2]} 3. Nc3 {[%clk 0:02:56.4]} 3... Bg7 {[%clk 0:02:59.6]}
4. e4 {[%clk 0:02:56.1]} 4... d6 {[%clk 0:03:00.1]} 5. Be2 {[%clk 0:02:56.5]}
5... O-O {[%clk 0:03:00]} 6. Be3 {[%clk 0:02:57.1]} 6... c5 {[%clk 0:02:59]} 7.
dxc5 {[%clk 0:02:56.6]} 7... Qa5 {[%clk 0:02:57.2]} 8. Bd2 {[%clk 0:02:55.9]}
8... Qxc5 {[%clk 0:02:55.5]} 9. Nf3 {[%clk 0:02:54.9]} 9... a6 {[%clk
0:02:55.1]} 10. Be3 {[%clk 0:02:54.5]} 10... Qc7 {[%clk 0:02:55]} 11. O-O {[%clk
0:02:53.2]} 11... Nc6 {[%clk 0:02:54.3]} 12. Rc1 {[%clk 0:02:52.7]} 12... Qb8
{[%clk 0:02:28.3]} 13. Qd2 {[%clk 0:02:49.9]} 13... Be6 {[%clk 0:02:27.8]} 14.
Rfd1 {[%clk 0:02:47.3]} 14... Ng4 {[%clk 0:02:27.3]} 15. Bf4 {[%clk 0:02:43.9]}
15... Nge5 {[%clk 0:02:26.3]} 16. Nxe5 {[%clk 0:02:39.8]} 16... dxe5 {[%clk
0:02:25.6]} 17. Be3 {[%clk 0:02:37.4]} 17... Nd4 {[%clk 0:02:24.6]} 18. Nd5
{[%clk 0:02:36.3]} 18... Bxd5 {[%clk 0:02:14.2]} 19. cxd5 {[%clk 0:02:37.2]}
19... Rc8 {[%clk 0:02:13.4]} 20. Bf1 {[%clk 0:02:34.4]} 20... Qd6 {[%clk
0:02:12.9]} 21. h4 {[%clk 0:02:26.3]} 21... h5 {[%clk 0:02:09.5]} 22. Kh2 {[%clk
0:02:21.7]} 22... f5 {[%clk 0:01:51.6]} 23. f3 {[%clk 0:02:04.4]} 23... f4
{[%clk 0:01:50.6]} 24. Bf2 {[%clk 0:02:03.6]} 24... Qf6 {[%clk 0:01:39.5]} 25.
Rc3 {[%clk 0:02:01.6]} 25... g5 {[%clk 0:01:38.1]} 26. hxg5 {[%clk 0:02:00.8]}
26... Qxg5 {[%clk 0:01:36.8]} 27. Rdc1 {[%clk 0:02:01.4]} 27... Rxc3 {[%clk
0:01:26.2]} 28. bxc3 {[%clk 0:02:02.3]} 28... h4 {[%clk 0:01:25.8]} 29. cxd4
{[%clk 0:02:01.5]} 29... exd4 {[%clk 0:01:13.2]} 30. Bxd4 {[%clk 0:01:56.4]}
30... h3 {[%clk 0:01:03.8]} 31. Bxg7 {[%clk 0:01:50.2]} 31... Qh4 {[%clk
0:00:51]} 32. Qe1 {[%clk 0:01:42.2]} 32... Qh5 {[%clk 0:00:43.5]} 33. gxh3
{[%clk 0:01:40]} 33... Kxg7 {[%clk 0:00:41.6]} 34. Qc3+ {[%clk 0:01:39.1]} 34...
Kf7 {[%clk 0:00:37.4]} 35. Rc2 {[%clk 0:01:38.4]} 35... Qh4 {[%clk 0:00:32]} 36.
Rg2 {[%clk 0:01:37.5]} 36... Rh8 {[%clk 0:00:27.8]} 37. Qg7+ {[%clk 0:01:21]}
37... Ke8 {[%clk 0:00:26]} 38. Qg4 {[%clk 0:01:21.9]} 38... Qe1 {[%clk
0:00:24.6]} 39. Qc8+ {[%clk 0:01:19.8]} 39... Kf7 {[%clk 0:00:24.3]} 40. Qxh8
{[%clk 0:01:20]} 40... Qxf1 {[%clk 0:00:24.2]} 41. Qg8+ {[%clk 0:01:17.8]} 41...
Kf6 {[%clk 0:00:23.9]} 42. Qe6# {[%clk 0:01:18.7]} 1-0

[Event "*** Titled Tuesday Blitz"]
[Site "Chess.com"]
[Date "2020.11.03"]
[Round "1"]
[White "Duhless"]
[Black "grunbergmihai"]
[Result "1-0"]
[WhiteElo "2992"]
[BlackElo "2466"]
[TimeControl "180+1"]
[EndTime "10:06:07 PST"]
[Termination "Duhless won by resignation"]

1. d4 {[%clk 0:03:00.9]} 1... f5 {[%clk 0:02:59.2]} 2. g3 {[%clk 0:02:58.9]}
2... Nf6 {[%clk 0:02:58.9]} 3. Bg2 {[%clk 0:02:59.8]} 3... g6 {[%clk 0:02:59.1]}
4. c3 {[%clk 0:02:59.3]} 4... c6 {[%clk 0:02:58.3]} 5. Nf3 {[%clk 0:02:58.3]}
5... Bg7 {[%clk 0:02:57.7]} 6. O-O {[%clk 0:02:59.2]} 6... O-O {[%clk
0:02:57.4]} 7. Nbd2 {[%clk 0:03:00.1]} 7... Ne4 {[%clk 0:02:54]} 8. Qc2 {[%clk
0:02:59.2]} 8... d5 {[%clk 0:02:52.1]} 9. Ne5 {[%clk 0:02:59.1]} 9... Nd7 {[%clk
0:02:43.3]} 10. Nxd7 {[%clk 0:02:57.5]} 10... Bxd7 {[%clk 0:02:40.7]} 11. Nf3
{[%clk 0:02:58.4]} 11... Nd6 {[%clk 0:02:27.5]} 12. Bf4 {[%clk 0:02:57]} 12...
Nf7 {[%clk 0:02:27.1]} 13. c4 {[%clk 0:02:52.6]} 13... e6 {[%clk 0:02:22.3]} 14.
h4 {[%clk 0:02:47]} 14... h6 {[%clk 0:02:19.9]} 15. Qc1 {[%clk 0:02:46.8]} 15...
Kh7 {[%clk 0:02:15.6]} 16. Rd1 {[%clk 0:02:30.8]} 16... Bf6 {[%clk 0:02:10]} 17.
Be5 {[%clk 0:02:17]} 17... Nxe5 {[%clk 0:02:02.7]} 18. Nxe5 {[%clk 0:02:16.3]}
18... Be8 {[%clk 0:01:42.2]} 19. b4 {[%clk 0:02:14]} 19... Rc8 {[%clk
0:01:34.1]} 20. Qe3 {[%clk 0:02:11]} 20... Qc7 {[%clk 0:01:25.6]} 21. Nd3 {[%clk
0:02:09.2]} 21... Bf7 {[%clk 0:01:22.7]} 22. Rac1 {[%clk 0:02:08.6]} 22... g5
{[%clk 0:01:17.7]} 23. hxg5 {[%clk 0:02:07.8]} 23... hxg5 {[%clk 0:01:17.8]} 24.
b5 {[%clk 0:02:08.1]} 24... Kg7 {[%clk 0:01:14.6]} 25. bxc6 {[%clk 0:02:05.4]}
25... bxc6 {[%clk 0:01:14.3]} 26. Ne5 {[%clk 0:02:04.2]} 26... Bxe5 {[%clk
0:01:10.8]} 27. dxe5 {[%clk 0:02:00.8]} 27... Qe7 {[%clk 0:01:07.5]} 28. Rc3
{[%clk 0:01:49.1]} 28... Bg6 {[%clk 0:01:04.6]} 29. f4 {[%clk 0:01:47.6]} 29...
g4 {[%clk 0:01:01.3]} 30. Rdc1 {[%clk 0:01:45.1]} 30... Rcd8 {[%clk 0:00:54]}
31. cxd5 {[%clk 0:01:44.7]} 31... cxd5 {[%clk 0:00:53.9]} 32. Rc7 {[%clk
0:01:44.2]} 32... Rd7 {[%clk 0:00:53.7]} 33. Qxa7 {[%clk 0:01:44.3]} 33... Rfd8
{[%clk 0:00:52.4]} 34. e3 {[%clk 0:01:37.6]} 34... Be8 {[%clk 0:00:51.9]} 35.
Bf1 {[%clk 0:01:36.6]} 35... Qb4 {[%clk 0:00:48]} 36. Rxd7+ {[%clk 0:01:30.1]}
36... Rxd7 {[%clk 0:00:46.1]} 37. Rc7 {[%clk 0:01:30.3]} 37... Qe7 {[%clk
0:00:33.5]} 38. Rxd7 {[%clk 0:01:29.2]} 38... Qxd7 {[%clk 0:00:33.4]} 39. Qxd7+
{[%clk 0:01:27.7]} 39... Bxd7 {[%clk 0:00:34.3]} 40. Kf2 {[%clk 0:01:28.1]}
40... Kf7 {[%clk 0:00:34.1]} 41. Ke1 {[%clk 0:01:28.3]} 41... Ke7 {[%clk
0:00:34.2]} 42. Kd2 {[%clk 0:01:28.5]} 42... Kd8 {[%clk 0:00:35.1]} 43. Kc3
{[%clk 0:01:28.7]} 43... Kc7 {[%clk 0:00:36]} 44. Kb4 {[%clk 0:01:29]} 44... Kb6
{[%clk 0:00:35.8]} 45. a4 {[%clk 0:01:29.5]} 45... Bc8 {[%clk 0:00:31.4]} 46.
a5+ {[%clk 0:01:29.5]} 46... Kc6 {[%clk 0:00:30.9]} 47. Bb5+ {[%clk 0:01:29.5]}
1-0